[Event "*** Titled Tuesday Blitz"]
[Site "Chess.com"]
[Date "2020.12.29"]
[Round "2"]
[White "serena-maria"]
[Black "Pertinhez76"]
[Result "0-1"]
[WhiteElo "2370"]
[BlackElo "2109"]
[TimeControl "180+1"]
[EndTime "10:19:19 PST"]
[Termination "Pertinhez76 won by checkmate"]

1. Nf3 {[%clk 0:03:00]} 1... Nf6 {[%clk 0:02:57.2]} 2. g3 {[%clk 0:02:51.5]}
2... g6 {[%clk 0:02:56.6]} 3. Bg2 {[%clk 0:02:51.7]} 3... Bg7 {[%clk 0:02:56.4]}
4. O-O {[%clk 0:02:52.1]} 4... O-O {[%clk 0:02:56.2]} 5. c4 {[%clk 0:02:52.2]}
5... d6 {[%clk 0:02:55.7]} 6. Nc3 {[%clk 0:02:52.3]} 6... e5 {[%clk 0:02:54.6]}
7. d3 {[%clk 0:02:52.4]} 7... Nc6 {[%clk 0:02:54]} 8. Rb1 {[%clk 0:02:52]} 8...
a5 {[%clk 0:02:49.3]} 9. a3 {[%clk 0:02:52]} 9... Bd7 {[%clk 0:02:48.5]} 10. Nd2
{[%clk 0:02:48.9]} 10... Re8 {[%clk 0:02:34.1]} 11. b4 {[%clk 0:02:47.9]} 11...
axb4 {[%clk 0:02:33]} 12. axb4 {[%clk 0:02:48.8]} 12... Qc8 {[%clk 0:02:26]} 13.
b5 {[%clk 0:02:47.6]} 13... Nd4 {[%clk 0:02:25.2]} 14. Nb3 {[%clk 0:02:45.7]}
14... Bh3 {[%clk 0:02:19.3]} 15. Nxd4 {[%clk 0:02:44.5]} 15... exd4 {[%clk
0:02:18.7]} 16. Nd5 {[%clk 0:02:43]} 16... Bxg2 {[%clk 0:02:17.9]} 17. Kxg2
{[%clk 0:02:43.9]} 17... Nxd5 {[%clk 0:02:15]} 18. cxd5 {[%clk 0:02:44.8]} 18...
Qf5 {[%clk 0:02:12.9]} 19. Qc2 {[%clk 0:02:00.6]} 19... Qxd5+ {[%clk 0:02:08.4]}
20. Kg1 {[%clk 0:02:00.7]} 20... h5 {[%clk 0:01:49.7]} 21. h4 {[%clk 0:01:59.1]}
21... Ra2 {[%clk 0:01:42.5]} 22. Rb2 {[%clk 0:01:57.4]} 22... Rxb2 {[%clk
0:01:40.7]} 23. Qxb2 {[%clk 0:01:54.7]} 23... Re5 {[%clk 0:01:19.8]} 24. Bf4
{[%clk 0:01:52]} 24... Qxb5 {[%clk 0:01:14.6]} 25. Qa2 {[%clk 0:01:44.8]} 25...
Re8 {[%clk 0:01:12.2]} 26. Rb1 {[%clk 0:01:43.2]} 26... Qa6 {[%clk 0:00:53.6]}
27. Qc2 {[%clk 0:01:36.6]} 27... c5 {[%clk 0:00:51]} 28. e4 {[%clk 0:01:27.6]}
28... dxe3 {[%clk 0:00:47]} 29. Bxe3 {[%clk 0:01:27.8]} 29... b5 {[%clk
0:00:45.3]} 30. Qb3 {[%clk 0:01:25.3]} 30... b4 {[%clk 0:00:43.2]} 31. Qd5
{[%clk 0:01:20.9]} 31... Re5 {[%clk 0:00:38.1]} 32. Qb3 {[%clk 0:01:15.5]} 32...
Qc6 {[%clk 0:00:35.9]} 33. Rd1 {[%clk 0:01:08.8]} 33... Re8 {[%clk 0:00:34.7]}
34. Rd2 {[%clk 0:01:07.2]} 34... Ra8 {[%clk 0:00:33.7]} 35. Ra2 {[%clk
0:01:07.2]} 35... Rxa2 {[%clk 0:00:31.8]} 36. Qxa2 {[%clk 0:01:08.1]} 36... Kh7
{[%clk 0:00:31.8]} 37. Qxf7 {[%clk 0:01:06.7]} 37... Qa4 {[%clk 0:00:26.8]} 38.
Kh2 {[%clk 0:01:02.1]} 38... Qa6 {[%clk 0:00:23.9]} 39. Bg5 {[%clk 0:00:56]}
39... Qa8 {[%clk 0:00:20.4]} 40. Bf6 {[%clk 0:00:54.3]} 40... Qf8 {[%clk
0:00:19.4]} 41. Qxf8 {[%clk 0:00:37.1]} 41... Bxf8 {[%clk 0:00:18.1]} 42. Kg2
{[%clk 0:00:24.5]} 42... Kg8 {[%clk 0:00:17.9]} 43. Kf3 {[%clk 0:00:24.4]} 43...
Kf7 {[%clk 0:00:18.8]} 44. Bb2 {[%clk 0:00:23.8]} 44... Ke6 {[%clk 0:00:19]} 45.
Ke4 {[%clk 0:00:23.8]} 45... d5+ {[%clk 0:00:18.1]} 46. Kf4 {[%clk 0:00:23.9]}
46... Bh6+ {[%clk 0:00:17]} 47. Kf3 {[%clk 0:00:23.4]} 47... Bd2 {[%clk
0:00:16.7]} 48. g4 {[%clk 0:00:22.6]} 48... Bc3 {[%clk 0:00:16.9]} 49. Bxc3
{[%clk 0:00:18.1]} 49... bxc3 {[%clk 0:00:17.8]} 50. gxh5 {[%clk 0:00:18.2]}
50... gxh5 {[%clk 0:00:18]} 51. Ke3 {[%clk 0:00:17.1]} 51... d4+ {[%clk
0:00:17]} 52. Ke2 {[%clk 0:00:17.1]} 52... Kf5 {[%clk 0:00:15.8]} 53. Kd1 {[%clk
0:00:16.8]} 53... Kf4 {[%clk 0:00:16.2]} 54. Kc2 {[%clk 0:00:16.8]} 54... Kf3
{[%clk 0:00:14.8]} 55. Kb3 {[%clk 0:00:16.7]} 55... Kxf2 {[%clk 0:00:15.1]} 56.
Kc2 {[%clk 0:00:17.6]} 56... Ke3 {[%clk 0:00:14.2]} 57. Kb3 {[%clk 0:00:18.5]}
57... Kxd3 {[%clk 0:00:14.3]} 58. Ka2 {[%clk 0:00:19.4]} 58... Kd2 {[%clk
0:00:11.9]} 59. Kb1 {[%clk 0:00:19.4]} 59... c2+ {[%clk 0:00:12.2]} 60. Ka2
{[%clk 0:00:20.3]} 60... c1=Q {[%clk 0:00:11.4]} 61. Kb3 {[%clk 0:00:21.2]}
61... Qc3+ {[%clk 0:00:08.6]} 62. Ka2 {[%clk 0:00:22.1]} 62... Qb4 {[%clk
0:00:07.3]} 63. Ka1 {[%clk 0:00:22.2]} 63... Kc2 {[%clk 0:00:07.4]} 64. Ka2
{[%clk 0:00:23.1]} 64... Qb2# {[%clk 0:00:05.7]} 0-1

[Event "*** Titled Tuesday Blitz"]
[Site "Chess.com"]
[Date "2020.12.29"]
[Round "2"]
[White "EugeneRougon"]
[Black "bilelou"]
[Result "1/2-1/2"]
[WhiteElo "2767"]
[BlackElo "2532"]
[TimeControl "180+1"]
[EndTime "10:19:20 PST"]
[Termination "Game drawn by repetition"]

1. e4 {[%clk 0:03:00.9]} 1... c5 {[%clk 0:02:59]} 2. Nf3 {[%clk 0:03:00.6]} 2...
Nc6 {[%clk 0:02:59.6]} 3. Bb5 {[%clk 0:03:00.4]} 3... Nb8 {[%clk 0:02:58.3]} 4.
O-O {[%clk 0:02:51.2]} 4... a6 {[%clk 0:02:58.2]} 5. Be2 {[%clk 0:02:46.5]} 5...
d6 {[%clk 0:02:58.3]} 6. Re1 {[%clk 0:02:25.4]} 6... Nf6 {[%clk 0:02:58]} 7. Bf1
{[%clk 0:02:25.7]} 7... Bg4 {[%clk 0:02:58]} 8. d3 {[%clk 0:02:23.8]} 8... e6
{[%clk 0:02:57.7]} 9. Nbd2 {[%clk 0:02:24.3]} 9... Be7 {[%clk 0:02:57.6]} 10. h3
{[%clk 0:02:24.7]} 10... Bh5 {[%clk 0:02:57.9]} 11. g3 {[%clk 0:02:20.3]} 11...
O-O {[%clk 0:02:56.9]} 12. Bg2 {[%clk 0:02:20.5]} 12... Nc6 {[%clk 0:02:57.4]}
13. c3 {[%clk 0:02:16.5]} 13... Nd7 {[%clk 0:02:57.1]} 14. d4 {[%clk 0:02:07.5]}
14... cxd4 {[%clk 0:02:56.8]} 15. cxd4 {[%clk 0:01:51.8]} 15... Nxd4 {[%clk
0:02:47.9]} 16. Nc4 {[%clk 0:01:42.4]} 16... Nxf3+ {[%clk 0:02:17]} 17. Bxf3
{[%clk 0:01:43.3]} 17... Bxf3 {[%clk 0:02:17.6]} 18. Qxf3 {[%clk 0:01:43.8]}
18... Rc8 {[%clk 0:02:15.6]} 19. Qe2 {[%clk 0:01:37]} 19... Qc7 {[%clk
0:01:59.1]} 20. b3 {[%clk 0:01:36.7]} 20... Bf6 {[%clk 0:01:56]} 21. Rb1 {[%clk
0:01:21.8]} 21... b5 {[%clk 0:01:55.1]} 22. Ne3 {[%clk 0:01:18.9]} 22... Bc3
{[%clk 0:01:54.1]} 23. Rd1 {[%clk 0:01:18]} 23... Nf6 {[%clk 0:01:54.3]} 24. Ng4
{[%clk 0:01:00.3]} 24... Nxg4 {[%clk 0:01:48.6]} 25. Qxg4 {[%clk 0:01:01.2]}
25... Rfd8 {[%clk 0:01:35]} 26. Bg5 {[%clk 0:00:59.1]} 26... Rd7 {[%clk
0:01:33.7]} 27. Rbc1 {[%clk 0:00:59.2]} 27... Kh8 {[%clk 0:01:12.9]} 28. Rd3
{[%clk 0:00:19.6]} 28... b4 {[%clk 0:01:11.6]} 29. Bd2 {[%clk 0:00:19.8]} 29...
Qa5 {[%clk 0:00:52.7]} 30. Bxc3 {[%clk 0:00:07.9]} 30... bxc3 {[%clk 0:00:53.6]}
31. Rc2 {[%clk 0:00:07.5]} 31... h6 {[%clk 0:00:49]} 32. Qf3 {[%clk 0:00:07]}
32... Rdc7 {[%clk 0:00:36]} 33. Rxd6 {[%clk 0:00:07.1]} 33... Qe5 {[%clk
0:00:36.4]} 34. Qd3 {[%clk 0:00:06.4]} 34... a5 {[%clk 0:00:36.1]} 35. Rd8+
{[%clk 0:00:06.4]} 35... Kh7 {[%clk 0:00:32.8]} 36. Rxc8 {[%clk 0:00:06.5]}
36... Rxc8 {[%clk 0:00:33.7]} 37. Kg2 {[%clk 0:00:06.9]} 37... Qc5 {[%clk
0:00:25.1]} 38. Qe3 {[%clk 0:00:05.2]} 38... Qc6 {[%clk 0:00:24.7]} 39. Qf3
{[%clk 0:00:04.6]} 39... Rc7 {[%clk 0:00:23.1]} 40. h4 {[%clk 0:00:04.9]} 40...
Qc5 {[%clk 0:00:18.2]} 41. Kh2 {[%clk 0:00:05.1]} 41... Qd4 {[%clk 0:00:16]} 42.
Kg2 {[%clk 0:00:05.4]} 42... g6 {[%clk 0:00:12.1]} 43. Qe3 {[%clk 0:00:04.8]}
43... Qb4 {[%clk 0:00:09.9]} 44. Qf4 {[%clk 0:00:04.4]} 44... Kg7 {[%clk
0:00:09]} 45. Qxc7 {[%clk 0:00:04.5]} 45... Qxe4+ {[%clk 0:00:06.8]} 46. Kh2
{[%clk 0:00:05.1]} 46... Qxc2 {[%clk 0:00:07.7]} 47. Qe5+ {[%clk 0:00:05.1]}
47... Kh7 {[%clk 0:00:08]} 48. Qf6 {[%clk 0:00:05.2]} 48... Kg8 {[%clk
0:00:04.1]} 49. Qd8+ {[%clk 0:00:05]} 49... Kg7 {[%clk 0:00:04.7]} 50. Qd4+
{[%clk 0:00:05.7]} 50... Kh7 {[%clk 0:00:04.8]} 51. Qf6 {[%clk 0:00:05.6]} 51...
Qf5 {[%clk 0:00:05.3]} 52. Qxc3 {[%clk 0:00:05.5]} 52... Qxf2+ {[%clk
0:00:05.6]} 53. Kh3 {[%clk 0:00:05.5]} 53... Qxa2 {[%clk 0:00:05.4]} 54. Qf6
{[%clk 0:00:05.6]} 54... Kg8 {[%clk 0:00:05.4]} 55. Qd8+ {[%clk 0:00:05.9]}
55... Kg7 {[%clk 0:00:05.7]} 56. Qd4+ {[%clk 0:00:06.3]} 56... Kf8 {[%clk
0:00:06.2]} 57. Qd8+ {[%clk 0:00:06.3]} 57... Kg7 {[%clk 0:00:06.2]} 58. Qd4+
{[%clk 0:00:06.9]} 58... Kg8 {[%clk 0:00:03.4]} 59. Qd8+ {[%clk 0:00:06.9]}
59... Kh7 {[%clk 0:00:04.1]} 60. Qf6 {[%clk 0:00:05.7]} 60... Kg8 {[%clk
0:00:02.3]} 61. Qd8+ {[%clk 0:00:05.9]} 1/2-1/2

[Event "*** Titled Tuesday Blitz"]
[Site "Chess.com"]
[Date "2020.12.29"]
[Round "2"]
[White "Shepherdboy"]
[Black "klimkoj"]
[Result "0-1"]
[WhiteElo "2314"]
[BlackElo "2582"]
[TimeControl "180+1"]
[EndTime "10:19:20 PST"]
[Termination "klimkoj won on time"]

1. Nf3 {[%clk 0:03:00.9]} 1... Nf6 {[%clk 0:02:59.4]} 2. c4 {[%clk 0:02:59.2]}
2... e6 {[%clk 0:02:59.2]} 3. Nc3 {[%clk 0:02:55.1]} 3... Bb4 {[%clk 0:02:58.9]}
4. d4 {[%clk 0:02:51.6]} 4... c5 {[%clk 0:02:57.5]} 5. e3 {[%clk 0:02:46]} 5...
O-O {[%clk 0:02:54.7]} 6. Bd3 {[%clk 0:02:42.6]} 6... Nc6 {[%clk 0:02:54.3]} 7.
O-O {[%clk 0:02:40.2]} 7... d5 {[%clk 0:02:49.3]} 8. cxd5 {[%clk 0:02:31.6]}
8... exd5 {[%clk 0:02:48.9]} 9. dxc5 {[%clk 0:02:31.7]} 9... Bg4 {[%clk
0:02:47.7]} 10. Be2 {[%clk 0:02:26.9]} 10... Bxc3 {[%clk 0:02:47.1]} 11. bxc3
{[%clk 0:02:26]} 11... Qa5 {[%clk 0:02:47.7]} 12. Bb2 {[%clk 0:02:21.9]} 12...
Qxc5 {[%clk 0:02:46.6]} 13. Qa4 {[%clk 0:02:20.7]} 13... Bxf3 {[%clk 0:02:42.3]}
14. Bxf3 {[%clk 0:02:19.4]} 14... Rfe8 {[%clk 0:02:31.1]} 15. Ba3 {[%clk
0:02:11.5]} 15... Qxc3 {[%clk 0:02:30.8]} 16. Rab1 {[%clk 0:02:04.8]} 16... Ne5
{[%clk 0:02:23.6]} 17. Rxb7 {[%clk 0:01:49]} 17... Nxf3+ {[%clk 0:02:23]} 18.
gxf3 {[%clk 0:01:47.9]} 18... Qe5 {[%clk 0:02:21.9]} 19. Bb2 {[%clk 0:01:42]}
19... Qg5+ {[%clk 0:02:20.3]} 20. Kh1 {[%clk 0:01:41.7]} 20... Qf5 {[%clk
0:02:20]} 21. Kg2 {[%clk 0:01:36.9]} 21... Ne4 {[%clk 0:02:10.2]} 22. Qd4 {[%clk
0:01:17.1]} 22... f6 {[%clk 0:01:58.1]} 23. Rc1 {[%clk 0:01:09.9]} 23... Nd6
{[%clk 0:01:20.4]} 24. Rb3 {[%clk 0:00:58.6]} 24... Nc4 {[%clk 0:01:18.1]} 25.
Qg4 {[%clk 0:00:58.2]} 25... Qxg4+ {[%clk 0:01:04.3]} 26. fxg4 {[%clk
0:00:59.1]} 26... Rab8 {[%clk 0:00:58.8]} 27. Bd4 {[%clk 0:00:56.2]} 27... a6
{[%clk 0:00:55]} 28. Rcb1 {[%clk 0:00:53.3]} 28... Rxb3 {[%clk 0:00:53.4]} 29.
Rxb3 {[%clk 0:00:53]} 29... Kf7 {[%clk 0:00:47.7]} 30. h4 {[%clk 0:00:53]} 30...
Kg6 {[%clk 0:00:42.1]} 31. Rb7 {[%clk 0:00:50]} 31... h5 {[%clk 0:00:38]} 32.
gxh5+ {[%clk 0:00:50]} 32... Kh6 {[%clk 0:00:37.3]} 33. Ra7 {[%clk 0:00:49.5]}
33... Re6 {[%clk 0:00:36.9]} 34. a4 {[%clk 0:00:42.9]} 34... Rd6 {[%clk
0:00:27]} 35. f4 {[%clk 0:00:38.7]} 35... Nd2 {[%clk 0:00:21.4]} 36. Kh3 {[%clk
0:00:33.7]} 36... Ne4 {[%clk 0:00:20.7]} 37. Kg4 {[%clk 0:00:30.9]} 37... Rc6
{[%clk 0:00:20.4]} 38. Ra8 {[%clk 0:00:28.3]} 38... Kh7 {[%clk 0:00:19.2]} 39.
a5 {[%clk 0:00:27.3]} 39... Nf2+ {[%clk 0:00:17.5]} 40. Kf5 {[%clk 0:00:24.2]}
40... Ne4 {[%clk 0:00:18]} 41. Bb6 {[%clk 0:00:22.5]} 41... Nd6+ {[%clk
0:00:17.4]} 42. Ke6 {[%clk 0:00:15.7]} 42... Nc4+ {[%clk 0:00:16.4]} 43. Kxd5
{[%clk 0:00:14.6]} 43... Nxb6+ {[%clk 0:00:16.8]} 44. axb6 {[%clk 0:00:13.9]}
44... Rxb6 {[%clk 0:00:16.9]} 45. e4 {[%clk 0:00:12.4]} 45... Rb5+ {[%clk
0:00:16.7]} 46. Kd6 {[%clk 0:00:12.4]} 46... Rb4 {[%clk 0:00:16.4]} 47. e5
{[%clk 0:00:11.6]} 47... Rd4+ {[%clk 0:00:14.1]} 48. Ke7 {[%clk 0:00:08.2]}
48... Rxf4 {[%clk 0:00:13.3]} 49. e6 {[%clk 0:00:07.8]} 49... Re4 {[%clk
0:00:13.3]} 50. Kf7 {[%clk 0:00:06.8]} 50... f5 {[%clk 0:00:13.5]} 51. Rxa6
{[%clk 0:00:06.5]} 51... f4 {[%clk 0:00:13.6]} 52. e7 {[%clk 0:00:06.5]} 52...
f3 {[%clk 0:00:14.1]} 53. Re6 {[%clk 0:00:06]} 53... f2 {[%clk 0:00:13.3]} 54.
Rxe4 {[%clk 0:00:03.4]} 54... f1=Q+ {[%clk 0:00:13.3]} 55. Ke6 {[%clk
0:00:03.9]} 55... Qa6+ {[%clk 0:00:12.7]} 56. Kf7 {[%clk 0:00:02.9]} 56... Qa2+
{[%clk 0:00:10.9]} 57. Re6 {[%clk 0:00:02.1]} 57... Qf2+ {[%clk 0:00:10.1]} 58.
Ke8 {[%clk 0:00:02.3]} 58... Qa7 {[%clk 0:00:09.9]} 59. Kf7 {[%clk 0:00:01.6]}
59... Qd7 {[%clk 0:00:09.4]} 0-1

[Event "*** Titled Tuesday Blitz"]
[Site "Chess.com"]
[Date "2020.12.29"]
[Round "2"]
[White "rubhani"]
[Black "Tagliata"]
[Result "1-0"]
[WhiteElo "2486"]
[BlackElo "2304"]
[TimeControl "180+1"]
[EndTime "10:19:21 PST"]
[Termination "rubhani won by resignation"]

1. Nf3 {[%clk 0:02:59.6]} 1... g6 {[%clk 0:02:59.3]} 2. h4 {[%clk 0:02:57.7]}
2... h5 {[%clk 0:02:57]} 3. d4 {[%clk 0:02:56.3]} 3... Bg7 {[%clk 0:02:57]} 4.
Bg5 {[%clk 0:02:56.8]} 4... Nf6 {[%clk 0:02:56.4]} 5. e3 {[%clk 0:02:57.1]} 5...
d5 {[%clk 0:02:55.7]} 6. Nbd2 {[%clk 0:02:54.6]} 6... c6 {[%clk 0:02:52.6]} 7.
Bd3 {[%clk 0:02:54.6]} 7... Bg4 {[%clk 0:02:48.2]} 8. O-O {[%clk 0:02:54.1]}
8... Nbd7 {[%clk 0:02:48.1]} 9. c3 {[%clk 0:02:40.6]} 9... Qb6 {[%clk
0:02:41.6]} 10. Qb3 {[%clk 0:02:37.6]} 10... Qxb3 {[%clk 0:02:28.7]} 11. axb3
{[%clk 0:02:36.8]} 11... a6 {[%clk 0:02:29.1]} 12. Nh2 {[%clk 0:02:21.7]} 12...
Be6 {[%clk 0:02:18.9]} 13. f4 {[%clk 0:02:21.3]} 13... Ng4 {[%clk 0:02:15.8]}
14. f5 {[%clk 0:01:53.2]} 14... Bxf5 {[%clk 0:02:08.9]} 15. Bxf5 {[%clk
0:01:53.3]} 15... gxf5 {[%clk 0:02:08.8]} 16. Rxf5 {[%clk 0:01:54.2]} 16... e6
{[%clk 0:02:04.5]} 17. Rff1 {[%clk 0:01:47.2]} 17... f6 {[%clk 0:01:56.5]} 18.
Bf4 {[%clk 0:01:47.1]} 18... f5 {[%clk 0:01:14.4]} 19. Nhf3 {[%clk 0:01:19.8]}
19... Bf6 {[%clk 0:01:13.2]} 20. b4 {[%clk 0:01:11.8]} 20... Ke7 {[%clk
0:01:12.5]} 21. Nb3 {[%clk 0:01:11.2]} 21... Rhg8 {[%clk 0:00:55.5]} 22. Nc5
{[%clk 0:01:08.4]} 22... Nxc5 {[%clk 0:00:54.5]} 23. bxc5 {[%clk 0:01:09.3]}
23... Kd7 {[%clk 0:00:52.2]} 24. b3 {[%clk 0:00:53.9]} 24... Rae8 {[%clk
0:00:50.7]} 25. Rae1 {[%clk 0:00:41.6]} 25... e5 {[%clk 0:00:50]} 26. Bg5 {[%clk
0:00:33.1]} 26... Bg7 {[%clk 0:00:41.8]} 27. Nh2 {[%clk 0:00:24]} 27... Rgf8
{[%clk 0:00:38.5]} 28. Nxg4 {[%clk 0:00:24.3]} 28... fxg4 {[%clk 0:00:37.6]} 29.
b4 {[%clk 0:00:12.8]} 29... e4 {[%clk 0:00:35.9]} 30. Bf4 {[%clk 0:00:11.5]}
30... Ke6 {[%clk 0:00:35]} 31. Rf2 {[%clk 0:00:11.2]} 31... Rf7 {[%clk
0:00:35.2]} 32. Ref1 {[%clk 0:00:10.7]} 32... Ref8 {[%clk 0:00:35.8]} 33. g3
{[%clk 0:00:11.2]} 33... Bf6 {[%clk 0:00:35.1]} 34. Kg2 {[%clk 0:00:11.8]} 34...
Bg7 {[%clk 0:00:34.6]} 35. Rc2 {[%clk 0:00:11.9]} 35... Bf6 {[%clk 0:00:34.6]}
36. Rfc1 {[%clk 0:00:11.8]} 36... Be7 {[%clk 0:00:34.5]} 37. c4 {[%clk
0:00:12.3]} 37... dxc4 {[%clk 0:00:34.2]} 38. Rxc4 {[%clk 0:00:13.2]} 38... Kd5
{[%clk 0:00:34.5]} 39. R4c2 {[%clk 0:00:13.5]} 39... Bf6 {[%clk 0:00:34]} 40.
Rd2 {[%clk 0:00:13.5]} 40... Bg7 {[%clk 0:00:33.9]} 41. Rb1 {[%clk 0:00:14.1]}
41... Rf5 {[%clk 0:00:32.7]} 42. Rc1 {[%clk 0:00:14.5]} 42... R5f7 {[%clk
0:00:32.2]} 43. Re1 {[%clk 0:00:14]} 43... Rf5 {[%clk 0:00:32.6]} 44. Rf1 {[%clk
0:00:14.4]} 44... R5f7 {[%clk 0:00:32.4]} 45. Rff2 {[%clk 0:00:14.7]} 45... Rf6
{[%clk 0:00:32.7]} 46. Kf1 {[%clk 0:00:15.1]} 46... Bh6 {[%clk 0:00:32.8]} 47.
Bxh6 {[%clk 0:00:13.3]} 47... Rf3 {[%clk 0:00:31.4]} 48. Bf4 {[%clk 0:00:12.8]}
48... Kc4 {[%clk 0:00:30.1]} 49. Rb2 {[%clk 0:00:12.5]} 49... Kd3 {[%clk
0:00:29.4]} 50. Rxf3 {[%clk 0:00:11.2]} 50... exf3 {[%clk 0:00:24.7]} 51. Kf2
{[%clk 0:00:11]} 51... Ke4 {[%clk 0:00:24.7]} 52. Rd2 {[%clk 0:00:10.9]} 52...
Rd8 {[%clk 0:00:25.1]} 53. d5 {[%clk 0:00:11.4]} 53... cxd5 {[%clk 0:00:24.3]}
54. Rd4+ {[%clk 0:00:11.6]} 54... Kf5 {[%clk 0:00:25]} 55. e4+ {[%clk
0:00:12.1]} 55... Ke6 {[%clk 0:00:23.8]} 56. Ke3 {[%clk 0:00:12.4]} 56... Rd7
{[%clk 0:00:21.7]} 57. exd5+ {[%clk 0:00:11.5]} 57... Rxd5 {[%clk 0:00:21.5]}
58. Rxd5 {[%clk 0:00:11.3]} 58... Kxd5 {[%clk 0:00:21.6]} 59. Kd3 {[%clk
0:00:11.8]} 59... Kc6 {[%clk 0:00:20.1]} 60. Be3 {[%clk 0:00:12.1]} 60... Kb5
{[%clk 0:00:17.2]} 61. Kc3 {[%clk 0:00:12.6]} 61... a5 {[%clk 0:00:16.3]} 62.
bxa5 {[%clk 0:00:12.6]} 62... Kxa5 {[%clk 0:00:16.7]} 63. Kc4 {[%clk 0:00:13.5]}
63... Ka4 {[%clk 0:00:16.4]} 64. Bf2 {[%clk 0:00:12.5]} 64... Ka5 {[%clk
0:00:15.8]} 65. Kd5 {[%clk 0:00:12.8]} 65... Kb5 {[%clk 0:00:16.3]} 66. Kd6
{[%clk 0:00:13.3]} 66... Ka6 {[%clk 0:00:16.6]} 67. Kc7 {[%clk 0:00:13.8]} 67...
Ka7 {[%clk 0:00:15.9]} 68. c6+ {[%clk 0:00:14.2]} 68... Ka6 {[%clk 0:00:15.8]}
69. cxb7 {[%clk 0:00:14.4]} 1-0

[Event "*** Titled Tuesday Blitz"]
[Site "Chess.com"]
[Date "2020.12.29"]
[Round "2"]
[White "TigrVShlyape"]
[Black "tlomigtlis"]
[Result "1-0"]
[WhiteElo "2863"]
[BlackElo "2553"]
[TimeControl "180+1"]
[EndTime "10:19:24 PST"]
[Termination "TigrVShlyape won by checkmate"]

1. e4 {[%clk 0:03:00.9]} 1... c5 {[%clk 0:03:00.6]} 2. Nf3 {[%clk 0:03:00.8]}
2... d6 {[%clk 0:03:01.1]} 3. Nc3 {[%clk 0:03:00.2]} 3... Nf6 {[%clk 0:03:01.3]}
4. Bc4 {[%clk 0:02:54.7]} 4... Nc6 {[%clk 0:03:00.6]} 5. O-O {[%clk 0:02:54.2]}
5... e6 {[%clk 0:02:58.2]} 6. d3 {[%clk 0:02:51.3]} 6... Be7 {[%clk 0:02:57.8]}
7. a3 {[%clk 0:02:51.2]} 7... O-O {[%clk 0:02:57.6]} 8. Ba2 {[%clk 0:02:51.2]}
8... d5 {[%clk 0:02:57.5]} 9. e5 {[%clk 0:02:47]} 9... Nd7 {[%clk 0:02:57.6]}
10. Re1 {[%clk 0:02:46.5]} 10... f6 {[%clk 0:02:58]} 11. exf6 {[%clk 0:02:45.3]}
11... Nxf6 {[%clk 0:02:58.9]} 12. Ne2 {[%clk 0:02:39]} 12... Nh5 {[%clk
0:02:40.2]} 13. Ng3 {[%clk 0:02:36.7]} 13... Nxg3 {[%clk 0:02:38.9]} 14. hxg3
{[%clk 0:02:36.6]} 14... Kh8 {[%clk 0:02:37.8]} 15. Bf4 {[%clk 0:02:31.7]} 15...
Bf6 {[%clk 0:02:35.1]} 16. c3 {[%clk 0:02:30.6]} 16... Qb6 {[%clk 0:02:22.8]}
17. Qd2 {[%clk 0:02:29.3]} 17... Bd7 {[%clk 0:02:21.8]} 18. Ne5 {[%clk
0:02:18.4]} 18... Nxe5 {[%clk 0:02:12.6]} 19. Bxe5 {[%clk 0:02:18.2]} 19... Bxe5
{[%clk 0:02:13.5]} 20. Rxe5 {[%clk 0:02:17.7]} 20... Qd6 {[%clk 0:02:14.4]} 21.
Rae1 {[%clk 0:02:16.9]} 21... Rf6 {[%clk 0:02:10.5]} 22. d4 {[%clk 0:02:16.8]}
22... Raf8 {[%clk 0:02:09.8]} 23. f3 {[%clk 0:02:13.8]} 23... b6 {[%clk
0:01:58.6]} 24. Bb1 {[%clk 0:02:13.1]} 24... Be8 {[%clk 0:01:57.9]} 25. g4
{[%clk 0:02:10.8]} 25... Bd7 {[%clk 0:01:51.3]} 26. g5 {[%clk 0:02:10.3]} 26...
Rf4 {[%clk 0:01:49.4]} 27. Kf2 {[%clk 0:02:02.4]} 27... g6 {[%clk 0:01:46.6]}
28. R1e3 {[%clk 0:01:52.4]} 28... Kg7 {[%clk 0:01:43.8]} 29. g3 {[%clk
0:01:52.3]} 29... R4f7 {[%clk 0:01:43.3]} 30. f4 {[%clk 0:01:52.2]} 30... a5
{[%clk 0:01:35.9]} 31. Kg2 {[%clk 0:01:48.7]} 31... c4 {[%clk 0:01:35]} 32. Bc2
{[%clk 0:01:47.9]} 32... b5 {[%clk 0:01:35.1]} 33. Bd1 {[%clk 0:01:47.3]} 33...
b4 {[%clk 0:01:31.1]} 34. axb4 {[%clk 0:01:44.1]} 34... axb4 {[%clk 0:01:31]}
35. Bg4 {[%clk 0:01:44.5]} 35... bxc3 {[%clk 0:01:12.5]} 36. bxc3 {[%clk
0:01:44.1]} 36... Re7 {[%clk 0:01:08.6]} 37. Qe1 {[%clk 0:01:43.7]} 37... Rfe8
{[%clk 0:01:08.5]} 38. f5 {[%clk 0:01:43.3]} 38... gxf5 {[%clk 0:01:02.9]} 39.
Bxf5 {[%clk 0:01:43.5]} 39... Qa3 {[%clk 0:00:47.5]} 40. Re2 {[%clk 0:01:29.1]}
40... Kf8 {[%clk 0:00:31.2]} 41. g6 {[%clk 0:01:24.6]} 41... h6 {[%clk
0:00:23.4]} 42. Bxe6 {[%clk 0:01:04.6]} 42... Ba4 {[%clk 0:00:17.3]} 43. Rf5+
{[%clk 0:00:59.5]} 43... Kg7 {[%clk 0:00:17.1]} 44. Rf7+ {[%clk 0:00:59.9]}
44... Rxf7 {[%clk 0:00:17.4]} 45. gxf7 {[%clk 0:00:59.9]} 45... Rf8 {[%clk
0:00:17.6]} 46. Rf2 {[%clk 0:01:00]} 46... Qd6 {[%clk 0:00:16.7]} 47. Qe3 {[%clk
0:00:59]} 47... Bd7 {[%clk 0:00:16]} 48. Bxd7 {[%clk 0:00:58.7]} 48... Qxd7
{[%clk 0:00:16.9]} 49. Qe5+ {[%clk 0:00:59]} 49... Kh7 {[%clk 0:00:17.2]} 50.
Qf6 {[%clk 0:00:58.7]} 50... Qg4 {[%clk 0:00:16.3]} 51. Qe7 {[%clk 0:00:54.5]}
51... Kg7 {[%clk 0:00:14.6]} 52. Qe5+ {[%clk 0:00:54.1]} 52... Kh7 {[%clk
0:00:15]} 53. Qxd5 {[%clk 0:00:54.4]} 53... Qg6 {[%clk 0:00:14.3]} 54. Qxc4
{[%clk 0:00:52.1]} 54... Qe4+ {[%clk 0:00:13.6]} 55. Kh2 {[%clk 0:00:52.4]}
55... h5 {[%clk 0:00:12.6]} 56. Qc5 {[%clk 0:00:48.6]} 56... h4 {[%clk
0:00:07.6]} 57. Qh5+ {[%clk 0:00:46.9]} 57... Kg7 {[%clk 0:00:07.2]} 58. Qg5+
{[%clk 0:00:47.1]} 58... Kh7 {[%clk 0:00:06.9]} 59. Qxh4+ {[%clk 0:00:47.4]}
59... Qxh4+ {[%clk 0:00:04]} 60. gxh4 {[%clk 0:00:48.3]} 60... Kg7 {[%clk
0:00:04.3]} 61. Kg3 {[%clk 0:00:46.7]} 61... Kh6 {[%clk 0:00:05.2]} 62. Kg4
{[%clk 0:00:45.7]} 62... Kg6 {[%clk 0:00:05.6]} 63. h5+ {[%clk 0:00:45.8]} 63...
Kh6 {[%clk 0:00:06.5]} 64. Rf6+ {[%clk 0:00:45]} 64... Kg7 {[%clk 0:00:07.4]}
65. Kg5 {[%clk 0:00:45.3]} 65... Kh7 {[%clk 0:00:08.3]} 66. h6 {[%clk
0:00:45.4]} 66... Kh8 {[%clk 0:00:08.2]} 67. d5 {[%clk 0:00:45.2]} 67... Kh7
{[%clk 0:00:07.7]} 68. d6 {[%clk 0:00:45.6]} 68... Kh8 {[%clk 0:00:06.5]} 69. d7
{[%clk 0:00:45.9]} 69... Kh7 {[%clk 0:00:07.2]} 70. c4 {[%clk 0:00:46]} 70...
Rd8 {[%clk 0:00:06.1]} 71. c5 {[%clk 0:00:42.1]} 71... Rf8 {[%clk 0:00:03.6]}
72. c6 {[%clk 0:00:42.1]} 72... Rd8 {[%clk 0:00:04.5]} 73. c7 {[%clk 0:00:41.1]}
73... Rf8 {[%clk 0:00:05.4]} 74. Rg6 {[%clk 0:00:40.4]} 74... Rg8 {[%clk
0:00:01.3]} 75. fxg8=N {[%clk 0:00:34.4]} 75... Kh8 {[%clk 0:00:02.2]} 76. Ne7
{[%clk 0:00:33.9]} 76... Kh7 {[%clk 0:00:02.8]} 77. Nd5 {[%clk 0:00:31.6]} 77...
Kh8 {[%clk 0:00:03.7]} 78. d8=N {[%clk 0:00:30.7]} 78... Kh7 {[%clk 0:00:04.6]}
79. Nf6+ {[%clk 0:00:30.5]} 79... Kh8 {[%clk 0:00:05.5]} 80. Nf7# {[%clk
0:00:30.6]} 1-0